[Event "Open International Liffre 2019"]
[Site "Liffre"]
[Date "2019.10.25"]
[Round "9.2"]
[White "Nikolov, Momchil"]
[Black "Bianchi, Guillaume"]
[Result "1-0"]
[TimeControl "1h30 + 30s/coup + 30 min /40 Coup"]
[WhiteTitle "GM"]
[WhiteElo "2557"]
[BlackElo "2147"]

1. d4 {[%clk 01:29:44]} {[%emt 00:01:16]} d5 {[%clk 01:30:37]} {[%emt
00:00:23]} 2. c4 {[%clk 01:30:07]} {[%emt 00:00:07]} c6 {[%clk 01:30:58]}
{[%emt 00:00:10]} 3. Nf3 {[%clk 01:30:30]} {[%emt 00:00:07]} Nf6 {[%clk
01:31:10]} {[%emt 00:00:18]} 4. Qc2 {[%clk 01:30:45]} {[%emt 00:00:13]} g6
{[%clk 01:30:41]} {[%emt 00:01:00]} 5. Bf4 {[%clk 01:30:49]} {[%emt 00:00:26]}
Bg7 {[%clk 01:29:29]} {[%emt 00:01:42]} 6. e3 {[%clk 01:30:53]} {[%emt
00:00:25]} O-O {[%clk 01:28:44]} {[%emt 00:01:15]} 7. Nc3 {[%clk 01:31:05]}
{[%emt 00:00:19]} Na6 {[%clk 01:24:37]} {[%emt 00:04:38]} 8. cxd5 {[%clk
01:22:17]} {[%emt 00:09:17]} Nb4 {[%clk 01:20:03]} {[%emt 00:05:04]} 9. Qb3
{[%clk 01:14:49]} {[%emt 00:07:58]} Nbxd5 {[%clk 01:19:29]} {[%emt 00:01:04]}
10. Be5 {[%clk 01:13:26]} {[%emt 00:01:52]} Qb6 {[%clk 01:17:48]} {[%emt
00:02:12]} 11. Bc4 {[%clk 01:07:37]} {[%emt 00:06:18]} Qxb3 {[%clk 01:15:21]}
{[%emt 00:02:58]} 12. Bxb3 {[%clk 01:07:54]} {[%emt 00:00:13]} Bg4 {[%clk
01:11:11]} {[%emt 00:04:40]} 13. Nxd5 {[%clk 00:56:27]} {[%emt 00:11:58]} Nxd5
{[%clk 01:08:37]} {[%emt 00:03:03]} 14. Bxg7 {[%clk 00:56:39]} {[%emt
00:00:17]} Kxg7 {[%clk 01:08:59]} {[%emt 00:00:09]} 15. Ne5 {[%clk 00:56:56]}
{[%emt 00:00:12]} Be6 {[%clk 01:05:55]} {[%emt 00:03:34]} 16. Ke2 {[%clk
00:55:44]} {[%emt 00:01:42]} Nc7 {[%clk 01:03:42]} {[%emt 00:02:44]} 17. Bxe6
{[%clk 00:54:05]} {[%emt 00:02:08]} Nxe6 {[%clk 01:04:05]} {[%emt 00:00:08]} 18.
Rac1 {[%clk 00:53:08]} {[%emt 00:01:27]} Rfd8 {[%clk 01:01:23]} {[%emt
00:03:12]} 19. Rc4 {[%clk 00:50:32]} {[%emt 00:03:05]} f6 {[%clk 01:00:28]}
{[%emt 00:01:27]} 20. Nd3 {[%clk 00:50:38]} {[%emt 00:00:23]} Rd7 {[%clk
00:57:40]} {[%emt 00:03:18]} 21. Rhc1 {[%clk 00:48:00]} {[%emt 00:03:08]} Rad8
{[%clk 00:55:00]} {[%emt 00:03:10]} 22. b4 {[%clk 00:47:03]} {[%emt 00:01:27]}
Rd5 {[%clk 00:53:04]} {[%emt 00:02:25]} 23. a4 {[%clk 00:40:21]} {[%emt
00:07:12]} Kf7 {[%clk 00:45:28]} {[%emt 00:08:06]} 24. Rb1 {[%clk 00:39:30]}
{[%emt 00:01:21]} a6 {[%clk 00:38:04]} {[%emt 00:07:55]} 25. Nc5 {[%clk
00:35:25]} {[%emt 00:04:35]} Rb8 {[%clk 00:35:19]} {[%emt 00:03:15]} 26. Ne4
{[%clk 00:34:26]} {[%emt 00:01:29]} Nc7 {[%clk 00:33:16]} {[%emt 00:02:32]} 27.
g4 {[%clk 00:29:58]} {[%emt 00:04:58]} Ke8 {[%clk 00:20:42]} {[%emt 00:13:05]}
28. h4 {[%clk 00:29:37]} {[%emt 00:00:51]} Ne6 {[%clk 00:19:18]} {[%emt
00:01:54]} 29. Nc3 {[%clk 00:26:25]} {[%emt 00:03:42]} Rd7 {[%clk 00:17:45]}
{[%emt 00:02:04]} 30. b5 {[%clk 00:26:18]} {[%emt 00:00:36]} axb5 {[%clk
00:17:17]} {[%emt 00:00:58]} 31. axb5 {[%clk 00:26:45]} {[%emt 00:00:02]} cxb5
{[%clk 00:17:15]} {[%emt 00:00:33]} 32. Nxb5 {[%clk 00:26:03]} {[%emt
00:01:12]} Ra8 {[%clk 00:15:51]} {[%emt 00:01:54]} 33. Rc2 {[%clk 00:22:59]}
{[%emt 00:03:33]} Ra5 {[%clk 00:14:26]} {[%emt 00:01:56]} 34. Rcb2 {[%clk
00:22:35]} {[%emt 00:00:53]} Kd8 {[%clk 00:13:17]} {[%emt 00:01:40]} 35. Nc3
{[%clk 00:20:19]} {[%emt 00:02:45]} Rc7 {[%clk 00:11:17]} {[%emt 00:02:31]} 36.
Ne4 {[%clk 00:20:04]} {[%emt 00:00:45]} Kc8 {[%clk 00:10:39]} {[%emt 00:01:08]}
37. Rb6 {[%clk 00:19:00]} {[%emt 00:01:33]} Nd8 {[%clk 00:07:18]} {[%emt
00:03:52]} 38. R1b2 {[%clk 00:14:42]} {[%emt 00:04:48]} Rc6 {[%clk 00:04:47]}
{[%emt 00:03:02]} 39. Rxc6+ {[%clk 00:13:13]} {[%emt 00:01:59]} bxc6 {[%clk
00:04:45]} {[%emt 00:00:31]} 40. g5 {[%clk 00:12:54]} {[%emt 00:00:49]} f5
{[%clk 00:04:29]} {[%emt 00:00:46]} 41. Nd2 {[%clk 00:12:51]} {[%emt 00:00:32]}
Ra1 {[%clk 00:03:56]} {[%emt 00:01:04]} 42. Nf1 {[%clk 00:09:16]} {[%emt
00:04:05]} Ne6 {[%clk 00:02:46]} {[%emt 00:01:39]} 43. f4 {[%clk 00:08:02]}
{[%emt 00:01:44]} Nc7 {[%clk 00:00:47]} {[%emt 00:02:30]} 44. Ng3 {[%clk
00:03:36]} {[%emt 00:04:55]} Nd5 {[%clk 00:28:43]} {[%emt 00:02:35]} 45. Rb3
{[%clk 00:32:48]} {[%emt 00:01:17]} Kc7 {[%clk 00:27:23]} {[%emt 00:01:51]} 46.
h5 {[%clk 00:32:41]} {[%emt 00:00:37]} Ra2+ {[%clk 00:23:49]} {[%emt 00:04:05]}
47. Kf3 {[%clk 00:32:39]} {[%emt 00:00:31]} Nb6 {[%clk 00:22:01]} {[%emt
00:02:18]} 48. Rc3 {[%clk 00:28:27]} {[%emt 00:04:41]} Nd5 {[%clk 00:21:21]}
{[%emt 00:01:11]} 49. Rd3 {[%clk 00:27:22]} {[%emt 00:01:35]} Nb4 {[%clk
00:18:24]} {[%emt 00:03:27]} 50. Rd1 {[%clk 00:27:24]} {[%emt 00:00:27]} Nd5
{[%clk 00:17:17]} {[%emt 00:01:38]} 51. h6 {[%clk 00:26:27]} {[%emt 00:01:26]}
e6 {[%clk 00:16:48]} {[%emt 00:00:59]} 52. Rc1 {[%clk 00:24:36]} {[%emt
00:02:21]} Kd7 {[%clk 00:15:30]} {[%emt 00:01:49]} 53. Rb1 {[%clk 00:21:08]}
{[%emt 00:03:57]} Kc7 {[%clk 00:15:53]} {[%emt 00:00:07]} 54. Rb3 {[%clk
00:21:30]} {[%emt 00:00:09]} Nb6 {[%clk 00:14:59]} {[%emt 00:01:24]} 55. e4
{[%clk 00:15:58]} {[%emt 00:06:01]} Nc4 {[%clk 00:14:31]} {[%emt 00:00:58]} 56.
Rc3 {[%clk 00:15:55]} {[%emt 00:00:34]} Nb6 {[%clk 00:08:37]} {[%emt 00:06:25]}
57. Rc5 {[%clk 00:07:47]} {[%emt 00:08:37]} Nd7 {[%clk 00:06:08]} {[%emt
00:02:59]} 58. Rc1 {[%clk 00:06:40]} {[%emt 00:01:36]} Nb6 {[%clk 00:06:03]}
{[%emt 00:00:35]} 59. d5 {[%clk 00:05:39]} {[%emt 00:01:32]} fxe4+ {[%clk
00:05:51]} {[%emt 00:00:42]} 60. Nxe4 {[%clk 00:05:41]} {[%emt 00:00:27]} Nxd5
{[%clk 00:05:48]} {[%emt 00:00:33]} 61. Nc5 {[%clk 00:05:38]} {[%emt 00:00:34]}
Ra3+ {[%clk 00:05:12]} {[%emt 00:01:06]} 62. Ke4 {[%clk 00:05:46]} {[%emt
00:00:21]} Re3+ {[%clk 00:04:01]} {[%emt 00:01:42]} 63. Kd4 {[%clk 00:06:14]}
{[%emt 00:00:02]} Re2 {[%clk 00:03:38]} {[%emt 00:00:52]} 64. Ra1 {[%clk
00:06:03]} {[%emt 00:00:41]} Rd2+ {[%clk 00:02:52]} {[%emt 00:01:17]} 65. Ke4
{[%clk 00:04:59]} {[%emt 00:01:33]} Kd6 {[%clk 00:02:20]} {[%emt 00:01:03]} 66.
Nb7+ {[%clk 00:03:43]} {[%emt 00:01:46]} Kc7 {[%clk 00:02:25]} {[%emt
00:00:25]} 67. Nc5 {[%clk 00:03:19]} {[%emt 00:00:54]} Kd6 {[%clk 00:02:24]}
{[%emt 00:00:31]} 68. Nd3 {[%clk 00:02:55]} {[%emt 00:00:54]} Nc3+ {[%clk
00:01:54]} {[%emt 00:01:00]} 69. Ke3 {[%clk 00:02:11]} {[%emt 00:01:14]} Ra2
{[%clk 00:01:26]} {[%emt 00:00:58]} 70. Rxa2 {[%clk 00:01:49]} {[%emt
00:00:52]} Nxa2 {[%clk 00:01:54]} 71. Ne5 {[%clk 00:02:18]} Nc3 {[%clk
00:01:34]} {[%emt 00:00:51]} 72. Nxg6 {[%clk 00:02:31]} {[%emt 00:00:17]} Nd5+
{[%clk 00:01:38]} {[%emt 00:00:26]} 73. Ke4 {[%clk 00:02:39]} {[%emt 00:00:22]}
c5 {[%clk 00:01:13]} {[%emt 00:00:55]} 74. Ne5 {[%clk 00:02:37]} {[%emt
00:00:32]} Ke7 {[%clk 00:00:57]} {[%emt 00:00:46]} 75. Nc4 {[%clk 00:02:12]}
{[%emt 00:00:55]} Kf7 {[%clk 00:00:55]} {[%emt 00:00:32]} 76. Ne5+ {[%clk
00:01:39]} {[%emt 00:01:03]} Ke7 {[%clk 00:01:11]} {[%emt 00:00:14]} 77. f5
{[%clk 00:01:07]} {[%emt 00:01:01]} Nc7 {[%clk 00:00:34]} {[%emt 00:01:08]} 78.
f6+ {[%clk 00:01:17]} {[%emt 00:00:20]} Kf8 {[%clk 00:00:53]} {[%emt 00:00:10]}
79. g6 {[%clk 00:01:38]} {[%emt 00:00:10]} hxg6 {[%clk 00:00:31]} {[%emt
00:00:52]} 80. h7 {[%clk 00:02:00]} {[%emt 00:00:07]} 1-0

[ePGN "0.1;DGT LiveChess/2.1"]

[Event "Open International Liffre 2019"]
[Site "Liffre"]
[Date "2019.10.25"]
[Round "9.3"]
[White "Bailet, Pierre"]
[Black "Vidal, Llewellyn"]
[Result "1-0"]
[TimeControl "1h30 + 30s/coup + 30 min /40 Coup"]
[WhiteTitle "IM"]
[BlackTitle "FM"]
[WhiteElo "2493"]
[BlackElo "2319"]

1. e4 {[%clk 01:30:03]} {[%emt 00:00:56]} c5 {[%clk 01:30:37]} {[%emt
00:00:25]} 2. Nf3 {[%clk 01:30:17]} {[%emt 00:00:15]} Nc6 {[%clk 01:31:01]}
{[%emt 00:00:06]} 3. Bb5 {[%clk 01:30:22]} {[%emt 00:00:25]} g6 {[%clk
01:31:24]} {[%emt 00:00:07]} 4. O-O {[%clk 01:30:08]} {[%emt 00:00:44]} Bg7
{[%clk 01:31:49]} {[%emt 00:00:06]} 5. Re1 {[%clk 01:30:04]} {[%emt 00:00:33]}
e5 {[%clk 01:29:49]} {[%emt 00:02:31]} 6. Bxc6 {[%clk 01:27:48]} {[%emt
00:02:45]} dxc6 {[%clk 01:30:00]} {[%emt 00:00:19]} 7. d3 {[%clk 01:27:52]}
{[%emt 00:00:26]} Qc7 {[%clk 01:27:31]} {[%emt 00:03:00]} 8. a3 {[%clk
01:23:58]} {[%emt 00:04:23]} a5 {[%clk 01:16:50]} {[%emt 00:11:11]} 9. Be3
{[%clk 01:19:04]} {[%emt 00:05:22]} b6 {[%clk 01:17:19]} 10. Nbd2 {[%clk
01:17:41]} {[%emt 00:01:55]} Nf6 {[%clk 01:16:11]} {[%emt 00:01:39]} 11. b4
{[%clk 01:07:13]} {[%emt 00:10:58]} Ng4 {[%clk 01:06:24]} {[%emt 00:10:18]} 12.
bxc5 {[%clk 01:06:21]} {[%emt 00:01:22]} Nxe3 {[%clk 01:06:51]} {[%emt
00:00:03]} 13. Rxe3 {[%clk 00:59:28]} {[%emt 00:07:22]} bxc5 {[%clk 01:07:13]}
{[%emt 00:00:08]} 14. Nc4 {[%clk 00:59:29]} {[%emt 00:00:29]} O-O {[%clk
00:54:26]} {[%emt 00:13:18]} 15. Rb1 {[%clk 00:54:46]} {[%emt 00:05:12]} Be6
{[%clk 00:51:56]} {[%emt 00:03:00]} 16. Nfd2 {[%clk 00:53:17]} {[%emt
00:01:59]} Bh6 {[%clk 00:52:03]} {[%emt 00:00:23]} 17. Re1 {[%clk 00:53:19]}
{[%emt 00:00:26]} Rfd8 {[%clk 00:44:15]} {[%emt 00:08:20]} 18. Qe2 {[%clk
00:49:41]} {[%emt 00:04:08]} a4 {[%clk 00:43:50]} {[%emt 00:00:56]} 19. f3
{[%clk 00:39:48]} {[%emt 00:10:22]} Rab8 {[%clk 00:40:50]} {[%emt 00:03:31]} 20.
Rxb8 {[%clk 00:33:32]} {[%emt 00:06:45]} Rxb8 {[%clk 00:39:36]} {[%emt
00:01:44]} 21. Qf2 {[%clk 00:33:49]} {[%emt 00:00:12]} Rb5 {[%clk 00:39:59]}
{[%emt 00:00:08]} 22. g3 {[%clk 00:26:03]} {[%emt 00:08:16]} Bxd2 {[%clk
00:18:58]} {[%emt 00:21:31]} 23. Nxd2 {[%clk 00:24:35]} {[%emt 00:01:57]} Qd6
{[%clk 00:18:43]} {[%emt 00:00:46]} 24. f4 {[%clk 00:17:12]} {[%emt 00:07:52]}
exf4 {[%clk 00:18:41]} {[%emt 00:00:32]} 25. gxf4 {[%clk 00:16:44]} {[%emt
00:00:58]} Qd4 {[%clk 00:18:57]} {[%emt 00:00:15]} 26. Qxd4 {[%clk 00:10:22]}
{[%emt 00:06:52]} cxd4 {[%clk 00:19:21]} {[%emt 00:00:05]} 27. Rb1 {[%clk
00:06:12]} {[%emt 00:04:41]} Ba2 {[%clk 00:11:20]} {[%emt 00:08:31]} 28. Rxb5
{[%clk 00:03:41]} {[%emt 00:03:01]} cxb5 {[%clk 00:11:49]} {[%emt 00:00:02]} 29.
Kf2 {[%clk 00:03:56]} {[%emt 00:00:13]} b4 {[%clk 00:09:41]} {[%emt 00:02:39]}
30. axb4 {[%clk 00:04:25]} a3 {[%emt 00:01:25]} 31. b5 {[%emt 00:03:24]} Be6
{[%clk 00:06:05]} {[%emt 00:00:24]} 32. b6 {[%clk 00:04:45]} {[%emt 00:00:05]}
Bc8 {[%emt 00:00:09]} 33. Nb3 {[%clk 00:05:08]} {[%emt 00:00:02]} a2 {[%emt
00:00:16]} 34. Ke2 {[%emt 00:02:18]} f6 {[%clk 00:05:15]} {[%emt 00:00:11]} 35.
Kd2 {[%clk 00:05:15]} {[%emt 00:00:23]} g5 {[%clk 00:05:43]} {[%emt 00:00:02]}
36. fxg5 {[%clk 00:05:38]} {[%emt 00:00:06]} fxg5 {[%clk 00:06:10]} {[%emt
00:00:03]} 37. Kc1 {[%clk 00:05:50]} {[%emt 00:00:18]} h5 {[%clk 00:05:19]}
{[%emt 00:01:21]} 38. Kb2 {[%clk 00:06:00]} {[%emt 00:00:20]} g4 {[%clk
00:05:41]} {[%emt 00:00:09]} 39. Nxd4 {[%clk 00:05:41]} {[%emt 00:00:49]} Kf7
{[%clk 00:04:23]} {[%emt 00:01:48]} 40. Nf5 {[%clk 00:04:23]} {[%emt 00:01:47]}
Kf6 {[%clk 00:02:54]} {[%emt 00:02:00]} 41. Kxa2 {[%clk 00:01:04]} {[%emt
00:03:48]} 1-0

[ePGN "0.1;DGT LiveChess/2.1"]

[Event "Open International Liffre 2019"]
[Site "Liffre"]
[Date "2019.10.25"]
[Round "9.4"]
[White "Enchev, Ivajlo"]
[Black "Aumont, Alexandre"]
[Result "1-0"]
[TimeControl "1h30 + 30s/coup + 30 min /40 Coup"]
[WhiteTitle "GM"]
[WhiteElo "2488"]
[BlackElo "2221"]

1. d4 {[%clk 01:30:57]} {[%emt 00:00:03]} Nf6 {[%clk 01:29:35]} {[%emt
00:01:25]} 2. c4 {[%clk 01:30:54]} {[%emt 00:00:34]} c5 {[%clk 01:27:56]}
{[%emt 00:02:09]} 3. d5 {[%clk 01:31:05]} {[%emt 00:00:19]} b5 {[%clk
01:26:20]} {[%emt 00:02:06]} 4. cxb5 {[%clk 01:28:47]} {[%emt 00:02:48]} a6
{[%clk 01:25:18]} {[%emt 00:01:31]} 5. b6 {[%clk 01:29:11]} {[%emt 00:00:06]}
e6 {[%clk 01:20:55]} {[%emt 00:04:54]} 6. Nc3 {[%clk 01:29:32]} {[%emt
00:00:08]} Nxd5 {[%clk 01:18:40]} {[%emt 00:02:46]} 7. Nxd5 {[%clk 01:29:54]}
{[%emt 00:00:08]} exd5 {[%clk 01:19:04]} {[%emt 00:00:06]} 8. Qxd5 {[%clk
01:30:17]} {[%emt 00:00:06]} Nc6 {[%clk 01:19:16]} {[%emt 00:00:19]} 9. e4
{[%clk 01:29:29]} {[%emt 00:01:17]} Be7 {[%clk 01:18:19]} {[%emt 00:01:28]} 10.
Bc4 {[%clk 01:28:10]} {[%emt 00:01:48]} O-O {[%clk 01:18:17]} {[%emt 00:00:32]}
11. Nf3 {[%clk 01:26:15]} {[%emt 00:02:24]} Rb8 {[%clk 01:14:51]} {[%emt
00:03:58]} 12. O-O {[%clk 01:13:25]} {[%emt 00:13:20]} Rxb6 {[%clk 01:14:09]}
{[%emt 00:01:12]} 13. Ng5 {[%clk 00:57:55]} {[%emt 00:15:59]} Qe8 {[%clk
01:10:57]} {[%emt 00:03:42]} 14. Qf5 {[%clk 00:57:02]} {[%emt 00:01:23]} Bxg5
{[%clk 01:05:16]} {[%emt 00:06:12]} 15. Qxg5 {[%clk 00:51:57]} {[%emt
00:05:35]} d6 {[%clk 00:41:03]} {[%emt 00:24:43]} 16. Bf4 {[%clk 00:42:53]}
{[%emt 00:09:34]} Nd4 {[%clk 00:34:49]} {[%emt 00:06:44]} 17. f3 {[%clk
00:33:00]} {[%emt 00:10:22]} Be6 {[%clk 00:34:29]} {[%emt 00:00:50]} 18. Bd3
{[%clk 00:32:44]} {[%emt 00:00:47]} f6 {[%clk 00:34:01]} {[%emt 00:00:58]} 19.
Qg3 {[%clk 00:32:55]} {[%emt 00:00:18]} Qc6 {[%clk 00:27:36]} {[%emt 00:06:56]}
20. Qf2 {[%clk 00:28:57]} {[%emt 00:04:27]} f5 {[%clk 00:22:47]} {[%emt
00:05:20]} 21. Be3 {[%clk 00:24:54]} {[%emt 00:04:32]} Rb4 {[%clk 00:23:13]}
{[%emt 00:00:04]} 22. b3 {[%clk 00:23:08]} {[%emt 00:02:16]} fxe4 {[%clk
00:19:47]} {[%emt 00:03:56]} 23. Bxe4 {[%clk 00:22:26]} {[%emt 00:01:12]} d5
{[%clk 00:15:27]} {[%emt 00:04:51]} 24. Bd3 {[%clk 00:21:52]} {[%emt 00:01:03]}
Bf5 {[%clk 00:13:53]} {[%emt 00:02:04]} 25. Bxf5 {[%clk 00:21:21]} {[%emt
00:01:02]} Rxf5 {[%clk 00:14:21]} {[%emt 00:00:01]} 26. Rac1 {[%clk 00:20:48]}
{[%emt 00:01:03]} Qb5 {[%clk 00:12:25]} {[%emt 00:02:26]} 27. Rfe1 {[%clk
00:19:34]} {[%emt 00:01:43]} Re5 {[%clk 00:10:09]} {[%emt 00:02:47]} 28. Bxd4
{[%clk 00:17:04]} {[%emt 00:03:00]} Rxe1+ {[%clk 00:10:32]} {[%emt 00:00:07]}
29. Qxe1 {[%clk 00:16:54]} {[%emt 00:00:39]} Rxd4 {[%clk 00:10:56]} {[%emt
00:00:08]} 30. Qe6+ {[%clk 00:16:42]} {[%emt 00:00:42]} Kf8 {[%clk 00:11:24]}
{[%emt 00:00:02]} 31. Qd6+ {[%clk 00:15:31]} {[%emt 00:01:40]} Kg8 {[%clk
00:10:55]} {[%emt 00:00:59]} 32. Qe6+ {[%clk 00:11:49]} {[%emt 00:04:12]} Kf8
{[%clk 00:11:20]} {[%emt 00:00:06]} 33. Re1 {[%clk 00:11:42]} {[%emt 00:00:35]}
h6 {[%clk 00:10:27]} {[%emt 00:01:25]} 34. Re5 {[%clk 00:08:22]} {[%emt
00:03:50]} Rf4 {[%clk 00:07:33]} {[%emt 00:03:24]} 35. Rxd5 {[%clk 00:06:49]}
{[%emt 00:02:02]} Qb8 {[%clk 00:07:48]} {[%emt 00:00:15]} 36. Rd7 {[%clk
00:06:42]} {[%emt 00:00:37]} 1-0